Cogmind - Beta 16 @@@ ROGUE MODE // 2025.11.04 @ 22:30:36 Player: ChromeKnight Result: Destroyed by Y-45 Defender with Heavy Assault Rifle Performance ------------- Evolutions (0) 0 Regions Visited (3) 600 Robots Destroyed (11) 55 Value Destroyed (320) 320 Prototype IDs (0) 0 Alien Tech Used (0) 0 Bonus (0) 0 TOTAL SCORE: 975 Bonus ------- None Cogmind --------- Core Integrity 0/250 Matter 187/300 Energy 88/100 System Corruption 1% Temperature Cool (9) Movement Treading (160) Location -8/Recycling Parts ------- > --- POWER (1) -------- (None) > --- PROPULSION (2) --- Spiked Treads > --- UTILITY (2) ------ Small Storage Unit > --- WEAPON (2) ------- Subdweller Machine Gun Subdweller Machine Gun > --- INVENTORY (8) ---- Subdweller Power Source Subdweller Monowheel Subdweller Monowheel Subdweller Monowheel Light Assault Rifle Light Assault Rifle Peak State ------------ > --- POWER ------------ Subdweller Power Source > --- PROPULSION ------- Light Treads Spiked Treads > --- UTILITY ---------- Small Storage Unit > --- WEAPON ----------- Subdweller Machine Gun Battle Cannon > --- INVENTORY -------- Subdweller Power Source Subdweller Monowheel Subdweller Monowheel Light Assault Rifle Light Assault Rifle Subdweller Machine Gun [Rating: 11] Favorites ----------- Power Light Ion Engine Engine Light Ion Engine Propulsion Light Treads Treads Light Treads Utility Small Storage Unit Storage Small Storage Unit Weapon Assault Rifle Ballistic Gun Assault Rifle Ballistic Cannon Battle Cannon Build | -11 -10 -10 -8 ------- Run | Yrd Mat Sub Rec Slots Evolved . | . . . . Power . | . . . . Propulsion . | . . . . Utility . | . . . . Weapon . | . . . . Parts Attached 13 | 7 . 4 2 Power 2 | 1 . 1 . Engine 2 | 1 . 1 . Core . | . . . . Reactor . | . . . . Propulsion 3 | 2 . 1 . Treads 3 | 2 . 1 . Leg . | . . . . Wheel . | . . . . Hover . | . . . . Flight . | . . . . Utility 1 | 1 . . . Device . | . . . . Storage 1 | 1 . . . Processor . | . . . . Hackware . | . . . . Protection . | . . . . Artifact . | . . . . Weapon 7 | 3 . 2 2 Energy Gun . | . . . . Energy Cannon . | . . . . Ballistic Gun 6 | 3 . 1 2 Ballistic Cannon 1 | . . 1 . Launcher . | . . . . Special Weapon . | . . . . Impact Weapon . | . . . . Slashing Weapon . | . . . . Piercing Weapon . | . . . . Special Melee Weapon . | . . . . Unidentified Prototypes . | . . . . Parts Lost 6 | . . 2 4 Power 2 | . . 1 1 Propulsion 2 | . . 1 1 Utility . | . . . . Weapon 2 | . . . 2 Highest Loss Streak 4 | . . 2 4 To Critical Strikes . | . . . . Average Backups 3 | . 1 4 7 Power . | . . . 1 Propulsion . | . . 1 3 Utility . | . . . . Weapon 2 | . 1 2 3 Tool/Special . | . . . . Unused Backups 5 | . . . 5 Power 1 | . . . 1 Propulsion 3 | . . . 3 Utility . | . . . . Weapon 1 | . . . 1 Tool/Special . | . . . . Average Slot Usage (%) 84 | . 85 83 85 Engine 13 | . 14 12 14 Treads 27 | . 28 27 28 Storage 14 | . 14 14 14 Ballistic Gun 20 | . 28 16 14 Ballistic Cannon 7 | . . 11 14 Peak Build Rating 11 | 6 6 11 11 Average Rating 7 | 4 6 9 10 On Entrance 5 | . 6 6 11 Avg Prop Armor Cover (%) . | . . . . Naked Turns . | . . . . Heaviest Build 17 | 12 12 17 17 Greatest Support 40 | 40 40 40 40 Greatest Overweight (x) 1 | 1 . . . Average Overweight (x) . | . . . . Largest Inventory Capacity 8 | 8 8 8 8 Average Capacity 7 | 7 8 8 8 Most Carried 8 | 1 2 8 8 Average Carried 3 | . 1 4 7 Final Capacity 8 | 8 8 8 8 Final Carried 8 | 1 2 8 6 Class Distribution -------------------- 100% | Mutant Dominant Class ---------------- Mutant | -10/Materials Mutant | -10/Subcaves Mutant | -8/Recycling Resources | -11 -10 -10 -8 ----------- Run | Yrd Mat Sub Rec Matter Collected 558 | 241 . 317 . Remotely . | . . . . Salvage Created 397 | . . 365 32 Parts 27 | . . 27 . Haulers Intercepted . | . . . . Recyclers Shooed . | . . . . Parts Field Recycled . | . . . . Retrieved Matter . | . . . . Parts Self-Destructed 12 | . . 12 . Prevented . | . . . . Parts Restored . | . . . . Kills | -11 -10 -10 -8 ------- Run | Yrd Mat Sub Rec Combat Hostiles Destroyed 9 | . . 8 1 Guns 4 | . . 3 1 Cannons 5 | . . 5 . Classes Destroyed 4 | . . 3 1 Turret 2 | . . 2 . Swarmer 4 | . . 4 . Programmer 1 | . . . 1 Subdweller 4 | . . 4 . Best Kill Streak 4 | . . 4 1 Combat Bots Only 4 | . . 4 1 Max Kills in Single Turn 1 | . . 1 1 Gunslinging . | . . . . Exploded . | . . . . Melee . | . . . . Uniques/NPCs Destroyed . | . . . . Combat | -11 -10 -10 -8 -------- Run | Yrd Mat Sub Rec Hostile Shots Fired 141 | . . 119 22 Missed 47 | . . 43 4 Hits 94 | . . 76 18 Projectile 94 | . . 76 18 Critical Strikes 4 | . . 1 3 Damage Taken 1228 | . . 958 270 Core 254 | . . 221 33 Absorbed by Shields . | . . . . Core Remaining (%) 100 | 100 . . . Volleys Fired 72 | . . 67 5 Largest 2 | . . 2 2 Hottest 63 | . . 63 63 Shots Fired 116 | . . 106 10 Gun 90 | . . 84 6 Cannon 26 | . . 22 4 Launcher . | . . . . Special . | . . . . Kinetic 116 | . . 106 10 Thermal . | . . . . Explosive . | . . . . Electromagnetic . | . . . . Robot Hit Streak 31 | . . 31 2 Robot Miss Streak 4 | . . 4 4 Penetration Max . | . . . . Secondary Targets 2 | . . 2 . Max Gunslinging Chain 1 | . . 1 . Shots Hit Robots 90 | . . 86 4 Core Hits 26 | . . 25 1 Critical Kills . | . . . . Critical Parts Destroyed . | . . . . Critical Strikes 1 | . . 1 . Blast 1 | . . 1 . Melee Attacks . | . . . . Impact . | . . . . Slashing . | . . . . Piercing . | . . . . Sneak Attacks . | . . . . Combat Hostiles . | . . . . Follow-up Attacks . | . . . . Damage Inflicted 1441 | . . 1343 98 Guns 1095 | . . 1024 71 Cannons 346 | . . 319 27 Explosions . | . . . . Melee . | . . . . Ramming . | . . . . Kinetic 1441 | . . 1343 98 Thermal . | . . . . Explosive . | . . . . Electromagnetic . | . . . . Impact . | . . . . Slashing . | . . . . Piercing . | . . . . Highest Corruption 1 | . . . 1 Average Corruption 1 | . . . 1 Corruption Purged . | . . . . Corruption Blocked . | . . . . Overload Shots . | . . . . Overflow Damage 10 | . . 10 . Projectiles 10 | . . 10 . Explosions . | . . . . Melee . | . . . . Knockbacks 1 | . . 1 . Impact . | . . . . Kinetic 1 | . . 1 . Secondary . | . . . . Self-Inflicted Damage . | . . . . Shots . | . . . . Rammed . | . . . . Targets Rammed . | . . . . Kicked . | . . . . Crushed . | . . . . Highest Temperature 23 | . . 6 23 Average Temperature 10 | . . 6 12 Received Heat Transfer 336 | . . 282 54 Siege Activations . | . . . . Martial Activations . | . . . . Shielding Activations . | . . . . Robots Disrupted . | . . . . Combat Hostiles . | . . . . Robots Corrupted . | . . . . Combat Hostiles . | . . . . Parts Fried . | . . . . Impact Corruptions . | . . . . Robots Melted . | . . . . Combat Hostiles . | . . . . Parts Melted 1 | . . 1 . Heat Transferred . | . . . . Parts Sabotaged . | . . . . Parts Stolen . | . . . . Parts Stripped . | . . . . Power Chain Reactions . | . . . . Alert | -11 -10 -10 -8 ------- Run | Yrd Mat Sub Rec Maximum Alert Level . | . . . . Low Security (%) 100 | 100 100 . 100 Level 1 . | . . . . Level 2 . | . . . . Level 3 . | . . . . Level 4 . | . . . . Level 5 . | . . . . High Security . | . . . . Max Security . | . . . . Peak Influence 52 | . . . 52 Initial 52 | . . . 52 Average 5 | . . . 38 Influence Increases 171 | . . 150 21 Destroy 0b10 Robot/C 140 | . . 120 20 Destroy Structure 1 | . . . 1 Lose Combat Pursuer 30 | . . 30 . Influence Decreases 158 | . . 40 118 Entered New Map 58 | . . . 58 Time Decay 60 | . . 40 20 Lost Part 40 | . . . 40 Squads Dispatched . | . . . . Investigation . | . . . . Extermination . | . . . . Reinforcement . | . . . . Assault . | . . . . Garrison . | . . . . Intercept . | . . . . Searches Triggered . | . . . . Construction Impeded . | . . . . Haulers Reinforced . | . . . . Active Scanning Responses . | . . . . Cargo Convoy Interrupts . | . . . . Stealth | -11 -10 -10 -8 --------- Run | Yrd Mat Sub Rec Distress Signals . | . . . . Communications Jammed . | . . . . Distress Signals . | . . . . Times Spotted 16 | . . 14 2 Peak Tracking Total 6 | . . 6 2 Tactical Retreats 1 | . . 1 . Traps | -11 -10 -10 -8 ------- Run | Yrd Mat Sub Rec Traps Triggered . | . . . . Indirectly . | . . . . Trap Hack Attempts . | . . . . Triggered . | . . . . Disarmed . | . . . . Reprogrammed . | . . . . Reused . | . . . . Traps Extracted . | . . . . Installed . | . . . . Triggered . | . . . . Machines | -11 -10 -10 -8 ---------- Run | Yrd Mat Sub Rec Machines Disabled 1 | . . 1 . Max in Single Turn 1 | . . 1 . Machines Repaired . | . . . . Machines Dismantled . | . . . . Machines Sabotaged . | . . . . Overloaded Fab Kills . | . . . . Hacking | -11 -10 -10 -8 --------- Run | Yrd Mat Sub Rec Machines Accessed . | . . . . Terminals . | . . . . Fabricators . | . . . . Repair Stations . | . . . . Recycling Units . | . . . . Scanalyzers . | . . . . Garrison Access . | . . . . Total Hacks . | . . . . Successful . | . . . . Failed . | . . . . Catastrophic . | . . . . Database Lockouts . | . . . . Manual . | . . . . Terminals . | . . . . Fabricators . | . . . . Repair Stations . | . . . . Recycling Units . | . . . . Scanalyzers . | . . . . Garrison Access . | . . . . Terminal Hacks . | . . . . Fabricator Hacks . | . . . . Repair Station Hacks . | . . . . Recycling Unit Hacks . | . . . . Scanalyzer . | . . . . Garrison Access Hacks . | . . . . Unauthorized Hacks . | . . . . Terminals . | . . . . Fabricators . | . . . . Repair Stations . | . . . . Recycling Units . | . . . . Scanalyzers . | . . . . Garrison Access . | . . . . Data Cores Recovered . | . . . . Used . | . . . . Hacking Detections . | . . . . Full Trace Events . | . . . . Feedback Events . | . . . . Feedback Blocked . | . . . . Robot Schematics Acquired . | . . . . Robots Built . | . . . . Authchips . | . . . . Time . | . . . . Total Robot Build Rating . | . . . . Part Schematics Acquired . | . . . . Parts Built . | . . . . Authchips . | . . . . Time . | . . . . Total Part Build Rating . | . . . . Part Studies Acquired . | . . . . Parts Repaired . | . . . . Time . | . . . . Parts Recycled . | . . . . Recycled Matter . | . . . . Retrieved Matter . | . . . . Retrieved Components . | . . . . Parts Scanalyzed . | . . . . Part Schematics Acquired . | . . . . Parts Damaged . | . . . . Bothacking | -11 -10 -10 -8 ------------ Run | Yrd Mat Sub Rec Used RIF Installer . | . . . . Robots Hacked . | . . . . Non-combat . | . . . . Combat . | . . . . Robot Hacks Applied . | . . . . Relay Couplers Released . | . . . . Fabnet Peak Effective % . | . . . . Robots Rewired . | . . . . Allies Hacked . | . . . . Hacks Repelled . | . . . . Allies | -11 -10 -10 -8 -------- Run | Yrd Mat Sub Rec Total Allies . | . . . . Largest Group . | . . . . Highest-Rated Group . | . . . . Highest-Rated Ally . | . . . . Total Orders . | . . . . Ally Attacks . | . . . . Total Damage . | . . . . Kills . | . . . . Allies Corrupted . | . . . . Allies Melted . | . . . . Intel | -11 -10 -10 -8 ------- Run | Yrd Mat Sub Rec Active Infowar (turns) . | . . . . Robot Analysis Total . | . . . . Derelict Logs Recovered 1 | . . 1 . Drone Launches . | . . . . Drone Recoveries . | . . . . Exploration | -11 -10 -10 -8 ------------- Run | Yrd Mat Sub Rec Turns Passed 806 | 86 267 394 59 Spaces Moved 223 | 46 37 113 27 Core 9 | 9 . . . Treads 214 | 37 37 113 27 Legs . | . . . . Wheels . | . . . . Hover . | . . . . Flight . | . . . . Fastest Speed 50 | 50 160 160 160 Average Speed 156 | 143 160 160 160 Slowest Speed 160 | 160 160 160 160 Overloaded Moves . | . . . . Propulsion Burnouts . | . . . . Robots Hopped . | . . . . Potential Cave-ins . | . . . . Cave-ins Triggered . | . . . . Exploration Rate (%) 7 | 4 11 9 7 Regions Visited 3 Branch Regions 2 Pre-discovered Areas 1 | . . 1 . Known Exits Taken . | . . . . Unknown Exits Taken 3 | 1 1 1 . Scrap Searched . | . . . . Spaces Dug . | . . . . Terrain Destroyed 1 | . . . 1 Melee . | . . . . Projectile 1 | . . . 1 AOE . | . . . . Terrain Rammed . | . . . . Walls Destroyed . | . . . . Machines Disabled . | . . . . Actions | -11 -10 -10 -8 --------- Run | Yrd Mat Sub Rec Total 560 | 62 245 219 34 Wait 244 | 9 208 27 . Move 220 | 45 36 112 27 Hop . | . . . . Pick Up 8 | 1 1 6 . Fast Attach 10 | 6 . 4 . Attach 2 | . . . 2 Detach . | . . . . Swap 1 | 1 . . . Drop 2 | . . 2 . Fire 72 | . . 67 5 Melee . | . . . . Ram . | . . . . Kick . | . . . . Crush . | . . . . Escape Stasis . | . . . . Rewire 1 | . . 1 . Trap . | . . . . Miscellaneous . | . . . . Route ------- -11/Scrapyard -10/Materials -10/Subcaves -8/Recycling History --------- Turn | Location | Event 8 | -11/Scrapyard | Discovered new exit (range 16) 87 | -11/Scrapyard | Entered Materials 252 | -10/Materials | Discovered new exit (range 9) 316 | -10/Materials | Build established: Mutant 354 | -10/Materials | Entered Subcaves 355 | -10/Subcaves | Approached by a straggling Scientist 360 | -10/Subcaves | Ambushed by Subdwellers from Twisted Machinery 399 | -10/Subcaves | Core integrity fell below 50% 598 | -10/Subcaves | Learned location of Mines (-9) 600 | -10/Subcaves | A swath of the cavern ceiling suddenly collapsed 697 | -10/Subcaves | Discovered new exit (range 16) 700 | -10/Subcaves | Core integrity fell below 20% 748 | -10/Subcaves | Entered Recycling 807 | -8/Recycling | Destroyed by Y-45 Defender with Heavy Assault Rifle Last Messages --------------- (Blast). 00704_ Autobeam Turret destroyed. 00716_ Machine disabled. 00719_ Destroyed Autobeam. 00722_ Autobeam Turret destroyed. 00725_ Acquired 2 matter. 00741_ Acquired 17 matter. 00744_ Acquired 6 matter. 00746_ Acquired 5 matter. LOCATION=UNKNOWN GOAL=ESCAPE 00789_ Y-45 Defender springs to life. 00795_ Sub. Machine Gun destroyed. 00799_ Destroyed Gravmag System. 00800_ Broken Sub. Power Source destroyed. 00803_ Critical hit (Burn: +37). 00803_ Battle Cannon destroyed. 00806_ Destroyed Shock Rifle. 00806_ P-60 Hacker destroyed. 00807_ Lgt. Treads destroyed. Map ----- +----------------------------------------------------+ | | | | | | | | | | | | | | | | | ?????????????????????????????????????????????????? | | ?????????????????????????????????????????????????? | | ?????????????????????????????????????????????????? | | ?????????????????????????????????????????????????? | | ?????????????????????????????????????????????????? | | ?????????????????????????????????????????????????? | | ?????????????????????????????????????????????????? | | ?????????????????????????????????????????????????? | | ?????????????????????????????????????????????????? | | ?????????????????????????????????????????????????? | | ?????????????????????????????????????????????????? | | ?????????????????????????????????????????????????? | | ?????????????????????????????????????????????????? | | ?????????????????????????????????????????????????? | | ?????????????#####???????????????????????????????? | | ?????????????#! !#???????????????????????????????? | | ???###########!!!##########??????????????????????? | | ???# @#??????????????????????? | | ???# ##############+## #??????????????????????? | | ???# #???????????? ## #??????????????????????? | | ???# #???????????? ## #??????????????????????? | | ???# #####??????? !## Y #??????????????????????? | | ???# #???????!! ## %%#??????????????????????? | | ???# #?????? # ??????????????????????? | | ???# #??????!! ## #;###?????????????????????? | | ???# #????? ! ## ##????????????????????????? | | ???# #????? ?# ??????????????????????????? | | ???# #???? ! ?# ??????????????????????????? | | ???# #????+#####?# ??????????????????????????? | | ???# ??????????? ??????????????????????????? | | ???# ?????????? ??????????????????????????? | | ???# ?????????? ??????????????????????????? | | ???# ###?????????##??????????????????????????? | | ???# #???????????????????????????????????????? | | ???# #???????????????????????????????????????? | | ???# #???????????????????????????????????????? | | ???# #???????????????????????????????????????? | | ???# ????????????????????????????????????????? | | ????? ????????????????????????????????????????? | | ?????????????????????????????????????????????????? | | ?????????????????????????????????????????????????? | | ?????????????????????????????????????????????????? | +----------------------------------------------------+ Best States ------------- Heat Dissipation 25 Energy Generation 15 Energy Capacity 200 Matter Stores 300 Matter Capacity 300 Sight Range 16 Terrain Scan Density 10 Evasion (%) 40 Recoil Reduction 2 Item Schematics ----------------- None Robot Schematics ------------------ None Fabricated ------------ Nothing Repaired ---------- Nothing Studied --------- None Alien Tech Used ----------------- None Achievements -------------- None Challenges ------------ None Game ------ Seed GodTargetLink Manual? 0 Play Time 00:03:59 Cumulative 505.2 hours Start 2025.11.04 @ 20:51:15 End 2025.11.04 @ 22:30:36 Sessions 1 Manual Loads 0 Difficulty Rogue Special Mode None Game No. 841 Rogue 686 Adventurer 148 Explorer 7 Win Type - Total 24 Types 19/1/3/1/0/0/0/0/0/0 Lore% 74 Gallery% 78 Achievement% 61 Wizard Run 0 Options --------- Layout 1 ASCII 0 Keyboard 0 Movement Numpad Keybinds 0 Fullscreen 2 Font 24/Smallcaps Map View 50x40 Zoom Use 0% Tactical HUD 1 Map Filters NONE Filters NONE Steam 1 RUN: 89046023-3426-46ef-ab33-5c08662474ef